bitfinex/quotes_SOLUSD_20251002
["timestamp","ask_amount","ask_price","bid_price","bid_amount"]
[1759401088363,137.34130793,225.16,225.11,4.44223882]
[1759401088557,132.9,225.16,225.13,0.7]
[1759401088759,132.9,225.16,225.11,4.44223882]
[1759401088967,132.9,225.16,225.12,0.7]
[1759401089760,132.9,225.16,225.12,5.14197065]
[1759401090160,132.9,225.16,225.13,0.7]
[1759401090756,137.34129108,225.16,225.13,0.7]
[1759401091064,137.34129108,225.16,225.11,0.7]
[1759401092143,137.34129108,225.16,225.12,0.7]
[1759401092562,137.34129108,225.16,225.1,20.8]
[1759401092766,137.34129108,225.16,225.11,20.8]
[1759401092950,137.79129108,225.16,225.11,21.5]
[1759401093462,137.34129108,225.16,225.12,0.7]
[1759401095974,137.79129108,225.16,225.12,0.7]
[1759401098774,0.45,225.15,225.09,5.14250242]
[1759401099371,13.33955846,225.21,225.1,0.7]
[1759401099566,11.09918901,225.25,225.1,21.5]
[1759401099567,10.87647521,225.24,225.1,21.5]
[1759401099766,0.1,225.27,225.12,20.8]
[1759401099983,0.1,225.27,225.16,20.8]
[1759401100151,18.48,225.26,225.16,20.8]
[1759401100460,18.48,225.26,225.17,0.7]
[1759401100662,0.1,225.27,225.21,20.8]
[1759401100866,0.1,225.27,225.22,21.5]
[1759401101255,0.1,225.27,225.23,0.7]
[1759401102677,0.1,225.27,225.24,4.43970875]
[1759401102879,0.1,225.27,225.26,20.8]
[1759401103254,0.1,225.27,225.26,21.5]
[1759401104465,4.9891175,225.27,225.18,0.7]
[1759401104684,4.43970875,225.24,225.16,0.7]
[1759401104861,0.45,225.23,225.16,0.7]
[1759401105062,0.45,225.23,225.17,20.8]
[1759401106980,15.99036053,225.22,225.13,0.7]
[1759401107178,0.45,225.21,225.13,0.7]
[1759401108587,15.54036053,225.22,225.13,0.7]
[1759401110378,1.9377503,225.21,225.13,0.7]
[1759401110688,0.45,225.21,225.13,21.5]
[1759401111267,15.54174066,225.2,225.13,21.5]
[1759401111573,15.54174066,225.2,225.14,0.7]
[1759401113468,11.10124333,225.2,225.14,0.7]
[1759401114068,4.44030016,225.21,225.14,0.7]
[1759401114369,4.44030016,225.21,225.14,5.14167535]
[1759401114568,4.44030016,225.21,225.17,20.8]
[1759401114790,4.44030016,225.21,225.18,0.72]
[1759401115168,15.53996611,225.23,225.18,0.72]
[1759401115365,15.53996611,225.23,225.17,20.8]
[1759401115694,15.53996611,225.23,225.17,0.72]
[1759401117396,4.43990587,225.23,225.17,0.72]
[1759401117971,4.43990587,225.23,225.17,5.16104037]
[1759401118177,4.43990587,225.23,225.18,0.72]
[1759401118574,4.43990587,225.23,225.2,20.8]
[1759401118799,4.43951165,225.25,225.2,21.52]
[1759401118997,4.43951165,225.25,225.21,0.72]
[1759401119296,4.43951165,225.25,225.22,0.72]
[1759401120589,132.9,225.26,225.23,0.72]
[1759401120590,137.33933783,225.26,225.23,0.72]
[1759401120790,4.43933783,225.26,225.23,0.72]
[1759401120994,0.1,225.27,225.24,0.72]
[1759401121193,0.1,225.27,225.25,0.72]
[1759401121698,0.1,225.27,225.23,20.8]
[1759401121912,0.1,225.27,225.26,0.72]
[1759401122074,0.1,225.27,225.24,0.72]
[1759401122268,0.1,225.27,225.25,0.72]
[1759401122874,4.53914379,225.27,225.22,52.62]
[1759401123185,4.53914379,225.27,225.23,0.72]
[1759401123389,4.53914379,225.27,225.22,51.9]
[1759401123390,4.53914379,225.27,225.24,0.72]
[1759401123794,4.53914379,225.27,225.24,21.52]
[1759401127678,4.53914379,225.27,225.25,0.72]
[1759401127875,4.53914379,225.27,225.13,79.2]
[1759401128085,2.32206721,225.24,225.16,0.72]
[1759401128434,0.45,225.23,225.16,21.52]
[1759401128813,13.19854242,225.21,225.12,0.72]
[1759401129002,13.19854242,225.19,225.1,0.72]
[1759401129430,31.18,225.18,225.1,0.72]
[1759401129619,10.87647521,225.19,225.1,0.72]
[1759401130043,0.45,225.19,225.1,0.72]
[1759401130227,4.43970286,225.25,225.13,20.8]
[1759401130423,4.43970286,225.25,225.14,0.72]
[1759401131405,31.22,225.26,225.17,20.8]
[1759401131406,4.43931456,225.26,225.17,20.8]
[1759401131609,4.43931456,225.26,225.18,21.52]
[1759401132222,15.53760098,225.26,225.18,21.52]
[1759401133111,4.43970875,225.24,225.18,21.52]
[1759401133512,4.43970875,225.24,225.18,0.72]
[1759401137421,4.43948096,225.26,225.18,25.96069517]
[1759401137620,35.61948096,225.26,225.19,0.72]
[1759401138031,0.1,225.27,225.19,0.72]
[1759401138231,0.1,225.27,225.21,20.8]
[1759401138543,0.1,225.27,225.22,0.72]
[1759401138728,0.1,225.27,225.23,0.72]
[1759401139116,4.53913623,225.27,225.23,0.72]
[1759401140744,0.1,225.27,225.23,0.72]
[1759401142233,0.1,225.27,225.21,20.8]
[1759401142538,0.1,225.27,225.24,0.72]
[1759401143033,0.1,225.27,225.25,0.72]
[1759401143428,0.1,225.27,225.2,25.24049733]
[1759401143626,0.1,225.27,225.23,0.72]
[1759401143828,0.1,225.27,225.23,21.52]
[1759401144047,0.1,225.27,225.26,20.8]
[1759401144431,0.1,225.27,225.26,25.91931456]
[1759401148828,0.1,225.27,225.26,21.48]
[1759401149028,0.1,225.27,225.26,0.68]
[1759401149530,0.1,225.27,225.18,79.2]
[1759401149730,0.45,225.26,225.2,0.68]
[1759401150239,0.45,225.26,225.21,20.8]
[1759401150626,4.43951165,225.25,225.21,0.68]
[1759401150940,4.43951165,225.25,225.18,4.44089173]
[1759401151142,4.43951165,225.25,225.21,0.68]
[1759401151527,4.53930995,225.27,225.22,0.68]
[1759401151865,4.98930995,225.27,225.2,21.48]
[1759401152662,4.98930995,225.27,225.2,25.92037774]
[1759401155035,4.98930995,225.27,225.21,0.68]
[1759401155832,0.45,225.26,225.2,20.8]
[1759401156822,4.43951165,225.25,225.2,20.8]
[1759401157026,4.43951165,225.25,225.21,20.8]
[1759401157448,4.43951165,225.25,225.21,0.68]
[1759401157861,4.53930105,225.27,225.22,0.68]
[1759401158066,4.53930105,225.27,225.23,0.68]
[1759401158361,0.45,225.26,225.2,20.8]
[1759401158573,0.45,225.26,225.21,20.8]
[1759401158969,4.43951165,225.25,225.21,20.8]
[1759401159285,4.43951165,225.25,225.21,21.48]
[1759401160457,4.43951165,225.25,225.22,0.68]
[1759401161173,4.43931456,225.26,225.22,0.68]
[1759401161849,4.43931456,225.26,225.23,0.68]
[1759401162215,4.43931456,225.26,225.21,20.8]
[1759401162350,4.43931456,225.26,225.24,0.68]
[1759401162549,4.43931456,225.26,225.21,20.8]
[1759401162750,0.1,225.27,225.22,0.68]
[1759401163252,0.1,225.27,225.23,0.68]
[1759401165372,0.1,225.27,225.26,20.8]
[1759401165571,0.1,225.27,225.26,52.66]
[1759401166368,0.1,225.28,225.26,63.53647521]
[1759401166573,0.1,225.28,225.27,0.68]
[1759401167381,0.1,225.28,225.27,5.1191175]
[1759401168273,0.1,225.28,225.27,36.3591175]
[1759401168671,0.1,225.28,225.27,36.3391175]
[1759401169109,0.1,225.28,225.27,47.21559271]
[1759401169274,0.1,225.3,225.28,10.87647521]
[1759401169477,0.1,225.3,225.28,11.55647521]
[1759401169778,0.1,225.3,225.29,11.55647521]
[1759401170978,0.1,225.3,225.29,15.99519863]
[1759401171578,0.1,225.3,225.29,36.79519863]
[1759401171795,0.1,225.3,225.29,15.99519863]
[1759401171998,0.1,225.3,225.29,36.33872342]
[1759401172193,0.1,225.35,225.32,20.8]
[1759401172403,0.1,225.35,225.33,31.22]
[1759401172578,0.1,225.35,225.34,31.2]
[1759401172901,0.1,225.35,225.34,20.8]
[1759401173399,0.1,225.35,225.34,31.22]
[1759401174381,0.1,225.35,225.34,52.02]
[1759401175310,0.1,225.35,225.34,20.8]
[1759401177099,0.1,225.35,225.34,5.15773852]
[1759401178916,0.1,225.35,225.34,36.39773852]
[1759401180990,0.1,225.35,225.32,25.23797135]
[1759401181196,0.1,225.35,225.34,0.72]
[1759401182208,0.1,225.37,225.34,15.18692297]
[1759401182393,0.1,225.37,225.35,32.0]
[1759401183279,0.1,225.37,225.35,36.4375416]
[1759401184988,0.1,225.37,225.35,16.03401681]
[1759401185193,0.1,225.37,225.35,47.39401681]
[1759401187200,0.1,225.37,225.35,53.60492577]
[1759401187399,0.1,225.37,225.36,10.87647521]
[1759401188107,0.1,225.37,225.36,11.59647521]
[1759401188997,1e-08,225.37,225.36,101.44472886]
[1759401190889,1e-08,225.37,225.36,132.76472886]
[1759401192102,1e-08,225.39,225.38,20.8]
[1759401192417,1e-08,225.39,225.38,58.33090896]
[1759401192587,1e-08,225.39,225.38,60.82651655]
[1759401193023,1e-08,225.39,225.38,65.26346747]
[1759401193405,1e-08,225.39,225.38,76.13994268]
[1759401194399,1e-08,225.39,225.38,74.40433509]
[1759401196620,0.1,225.47,225.42,20.8]
[1759401196800,0.1,225.47,225.46,20.8]
[1759401196996,0.1,225.47,225.46,52.16]
[1759401198606,0.1,225.47,225.46,56.59537656]
[1759401201007,0.55,225.47,225.41,11.09055238]
[1759401201222,0.45,225.46,225.42,4.4361636]
[1759401201429,0.45,225.45,225.42,35.7561636]
[1759401201720,0.1,225.47,225.45,20.8]
[1759401202115,0.45,225.46,225.45,20.8]
[1759401202520,0.45,225.46,225.44,20.8]
[1759401202705,0.45,225.45,225.44,20.8]
[1759401203129,0.45,225.45,225.41,4.43633325]
[1759401203320,0.45,225.44,225.43,20.8]
[1759401203540,0.55,225.47,225.43,20.8]
[1759401203703,0.45,225.46,225.44,20.8]
[1759401204225,0.1,225.47,225.44,20.8]
[1759401204523,0.55,225.47,225.44,20.8]
[1759401205122,0.55,225.47,225.44,25.23565271]
[1759401205123,0.1,225.47,225.44,25.23565271]
[1759401205807,0.1,225.47,225.44,56.55565271]
[1759401210423,0.45,225.46,225.44,52.12]
[1759401210628,0.1,225.47,225.43,20.8]
[1759401210925,0.55,225.47,225.42,56.5160338]
[1759401211228,0.55,225.47,225.42,57.1760338]
[1759401212021,0.1,225.47,225.43,0.66]
[1759401213431,0.1,225.47,225.44,4.43577004]
[1759401213928,0.1,225.47,225.44,5.09577004]
[1759401215311,0.13,225.48,225.45,52.72]
[1759401215612,0.13,225.48,225.46,10.87647521]
[1759401215813,0.13,225.48,225.47,31.3]
[1759401216037,0.13,225.48,225.47,31.96]
[1759401217115,0.13,225.48,225.47,5.09517984]
[1759401217639,0.13,225.48,225.47,36.39517984]
[1759401217940,0.13,225.48,225.47,47.27165505]
[1759401219814,1e-08,225.48,225.47,47.27165505]
[1759401221411,1e-08,225.48,225.47,15.97165505]
[1759401221643,1e-08,225.48,225.47,47.27165505]
[1759401221845,1e-08,225.48,225.47,15.97165505]
[1759401222019,1e-08,225.48,225.47,47.27165505]
[1759401222219,1e-08,225.48,225.47,47.25165505]
[1759401224019,1e-08,225.48,225.47,49.02655354]
[1759401224215,1e-08,225.48,225.47,55.2374625]
[1759401225447,1e-08,225.5,225.49,31.67647521]
[1759401225618,1e-08,225.5,225.49,62.93647521]
[1759401225818,1e-08,225.5,225.49,63.59647521]
[1759401226447,1e-08,225.5,225.49,32.33647521]
[1759401226818,1e-08,225.5,225.49,142.79647521]
[1759401227030,1e-08,225.5,225.49,153.44217063]
[1759401228115,1e-08,225.5,225.49,122.18217063]
[1759401228346,1e-08,225.5,225.49,156.49026305]
[1759401228655,1e-08,225.5,225.49,152.78217063]
[1759401229255,1e-08,225.5,225.49,87.61308175]
[1759401229441,1e-08,225.5,225.49,89.387744]
[1759401229630,0.55,225.59,225.53,20.8]
[1759401229826,0.1,225.6,225.57,20.8]
[1759401230025,0.1,225.6,225.58,31.28]
[1759401230639,0.1,225.6,225.59,31.3]
[1759401231251,0.65,225.6,225.59,31.3]
[1759401231443,0.65,225.6,225.59,52.1]
[1759401231826,0.65,225.6,225.59,20.8]
[1759401232139,0.65,225.6,225.59,52.1]
[1759401232525,0.1,225.6,225.59,52.1]
[1759401232931,0.65,225.6,225.59,52.1]
[1759401233241,0.65,225.6,225.59,20.8]
[1759401234335,5.08279652,225.6,225.53,20.8]
[1759401234536,0.55,225.59,225.57,20.8]
[1759401234754,0.55,225.58,225.56,31.28]
[1759401234931,0.55,225.58,225.56,52.08]
[1759401235543,4.53262618,225.6,225.56,52.08]
[1759401235854,0.55,225.59,225.56,52.08]
[1759401236055,0.55,225.58,225.56,52.08]
[1759401236554,0.55,225.58,225.56,20.8]
[1759401236756,0.55,225.58,225.56,52.08]
[1759401237280,0.55,225.57,225.56,52.08]
[1759401237462,0.1,225.6,225.56,56.51339306]
[1759401237631,0.55,225.59,225.56,56.51339306]
[1759401237959,0.1,225.6,225.56,56.51339306]
[1759401238142,0.65,225.6,225.56,56.51339306]
[1759401238544,0.1,225.6,225.56,56.51339306]
[1759401238842,0.1,225.6,225.56,57.18339306]
[1759401239141,0.1,225.6,225.57,0.67]
[1759401239468,0.1,225.6,225.58,31.28]
[1759401240545,0.55,225.59,225.56,20.8]
[1759401240755,0.55,225.59,225.57,31.26]
[1759401241163,0.1,225.6,225.56,20.8]
[1759401241164,0.55,225.58,225.56,20.8]
[1759401241366,4.98321363,225.57,225.48,4.43498314]
[1759401241658,0.55,225.56,225.52,20.8]
[1759401241844,0.1,225.6,225.52,52.08]
[1759401242046,0.55,225.59,225.52,52.75]
[1759401243462,4.98287179,225.59,225.53,4.43399991]
[1759401243666,4.98287179,225.59,225.53,5.10399991]
[1759401244156,4.98287179,225.59,225.54,31.26]
[1759401245057,4.43287179,225.59,225.54,31.26]
[1759401245261,0.55,225.58,225.54,31.26]
[1759401245440,4.43321363,225.57,225.54,31.26]
[1759401246042,4.43321363,225.57,225.52,25.90415452]
[1759401246239,4.43321363,225.57,225.53,31.93]
[1759401246443,0.55,225.56,225.52,20.8]
[1759401246644,4.43321363,225.57,225.52,20.8]
[1759401247050,4.98321363,225.57,225.52,20.8]
[1759401247568,0.55,225.56,225.52,20.8]
[1759401247864,4.98321363,225.57,225.52,20.8]
[1759401248054,4.43321363,225.57,225.52,21.47]
[1759401248363,4.98321363,225.57,225.52,21.47]
[1759401248547,4.43321363,225.57,225.52,20.8]
[1759401248755,4.98321363,225.57,225.52,20.8]
[1759401249445,4.98321363,225.57,225.52,21.47]
[1759401249645,4.43303747,225.58,225.53,0.67]
[1759401249947,4.43303747,225.58,225.54,0.67]
[1759401250165,4.53279062,225.6,225.54,0.67]
[1759401251270,5.08279062,225.6,225.54,0.67]
[1759401254173,0.1,225.6,225.54,5.10379626]
[1759401254348,0.1,225.6,225.55,0.67]
[1759401254671,4.53273152,225.6,225.56,0.67]
[1759401254872,4.53273152,225.6,225.54,25.90379626]
[1759401255370,0.55,225.59,225.53,20.8]
[1759401255840,0.55,225.58,225.53,20.8]
[1759401256042,4.43341017,225.56,225.53,20.8]
[1759401256851,4.43341017,225.56,225.5,52.69]
[1759401257273,4.43321363,225.57,225.5,52.69]
[1759401257640,4.43321363,225.57,225.51,0.67]
[1759401259371,4.98321363,225.57,225.51,0.67]
[1759401259573,16.06624772,225.57,225.51,0.67]
[1759401259742,16.06624772,225.57,225.5,20.8]
[1759401260652,16.06624772,225.57,225.5,21.47]
[1759401262242,0.55,225.56,225.47,0.67]
[1759401262446,2.31462707,225.55,225.44,4.43577004]
[1759401262668,0.55,225.54,225.47,20.8]
[1759401262856,0.55,225.54,225.47,21.47]
[1759401263583,4.43399991,225.53,225.48,20.8]
[1759401263875,4.98399991,225.53,225.48,0.65]
[1759401264648,0.55,225.52,225.4,22.25796106]
[1759401264848,0.55,225.52,225.42,0.65]
[1759401264849,0.55,225.51,225.42,0.65]
[1759401265079,0.55,225.51,225.44,20.8]
[1759401265274,0.55,225.51,225.42,0.65]
[1759401265275,0.55,225.5,225.42,0.65]
[1759401265453,0.55,225.5,225.43,20.8]
[1759401265975,0.55,225.5,225.43,21.45]
[1759401266678,4.43478646,225.49,225.43,21.45]
[1759401267462,4.43461436,225.5,225.44,0.65]
[1759401267781,13.39952906,225.54,225.44,0.65]
[1759401267782,31.18,225.53,225.44,0.65]
[1759401268497,0.55,225.52,225.44,0.65]
[1759401268792,4.43439315,225.51,225.44,5.0857187]
[1759401269088,4.43439315,225.51,225.45,0.65]
[1759401269868,4.43399991,225.53,225.45,0.65]
[1759401270089,31.73,225.57,225.45,0.65]
[1759401270394,31.73,225.57,225.47,20.8]
[1759401270570,31.73,225.57,225.48,0.65]
[1759401270887,0.55,225.57,225.49,4.43478646]
[1759401271091,31.73,225.57,225.5,0.65]
[1759401271281,47.24625368,225.57,225.5,0.65]
[1759401272493,16.06625368,225.57,225.5,0.65]
[1759401272686,4.43360673,225.55,225.5,0.65]
[1759401273002,4.98360673,225.55,225.5,0.65]
[1759401273192,4.98360673,225.55,225.48,4.43497621]
[1759401273376,4.98360673,225.55,225.48,5.08497621]
[1759401273578,16.06762357,225.55,225.48,0.65]
[1759401274395,16.06762357,225.55,225.48,5.08489978]
[1759401275471,16.06762357,225.55,225.48,0.65]
[1759401277698,16.06762357,225.55,225.48,5.08497299]
[1759401280220,16.06762357,225.55,225.48,0.65]
[1759401283611,4.98360673,225.55,225.46,21.45]
[1759401283913,31.75,225.54,225.47,0.65]
[1759401284110,31.2,225.53,225.47,0.65]
[1759401285521,4.43419652,225.52,225.47,0.65]
[1759401285904,4.98419652,225.52,225.47,0.65]
[1759401288107,4.98419652,225.52,225.46,25.23526231]
[1759401288108,4.98419652,225.52,225.46,20.8]
[1759401288306,0.55,225.51,225.46,20.8]
[1759401288626,0.55,225.5,225.46,20.8]
[1759401289600,4.98460599,225.5,225.45,4.43555538]
[1759401289796,4.98460599,225.5,225.45,5.08555538]
[1759401290045,4.43460599,225.5,225.46,0.65]
[1759401290712,11.6354913,225.52,225.47,0.65]
[1759401290713,4.98433776,225.52,225.47,0.65]
[1759401291219,0.55,225.51,225.45,25.88555538]
[1759401291624,4.98454702,225.51,225.45,25.88555538]
[1759401292004,4.43454702,225.51,225.46,0.65]
[1759401292317,4.43454702,225.51,225.47,0.65]
[1759401292497,4.98454702,225.51,225.45,25.88555538]
[1759401292906,31.18,225.53,225.46,0.65]
[1759401292907,4.43419652,225.52,225.46,0.65]
[1759401293722,31.18,225.53,225.46,0.65]
[1759401293926,4.4339271,225.54,225.46,0.65]
[1759401294228,35.5939271,225.54,225.46,0.65]
[1759401294728,36.1439271,225.54,225.46,0.65]
[1759401295112,36.1439271,225.54,225.47,4.43517984]
[1759401295316,36.1439271,225.54,225.47,5.13517984]
[1759401296604,35.5939271,225.54,225.48,0.7]
[1759401297427,36.1439271,225.54,225.48,0.7]
[1759401297730,36.1439271,225.54,225.48,5.13496552]
[1759401299527,0.55,225.54,225.48,5.13496552]
[1759401299712,31.69,225.55,225.49,0.7]
[1759401300229,0.55,225.58,225.51,20.8]
[1759401300426,0.55,225.58,225.48,4.43496552]
[1759401300620,0.55,225.58,225.52,0.7]
[1759401301813,4.98317086,225.58,225.52,5.13417509]
[1759401302228,4.98317086,225.58,225.52,0.7]
[1759401303235,4.98317086,225.58,225.52,5.13413383]
[1759401303536,0.1,225.6,225.53,0.7]
[1759401303914,0.1,225.6,225.54,4.43380331]
[1759401304240,0.1,225.6,225.55,0.7]
[1759401305147,0.1,225.6,225.56,0.7]
[1759401305341,0.1,225.6,225.57,0.7]
[1759401305515,0.1,225.6,225.54,15.5183116]
[1759401305516,0.1,225.6,225.58,0.7]
[1759401306117,0.1,225.6,225.56,4.43338868]
[1759401306337,0.1,225.6,225.57,0.7]
[1759401307015,4.53263609,225.6,225.57,0.7]
[1759401307814,0.1,225.6,225.57,0.7]
[1759401308222,0.1,225.6,225.57,5.13317268]
[1759401308448,0.1,225.6,225.58,0.7]
[1759401308844,0.1,225.6,225.59,0.7]
[1759401313246,0.1,225.6,225.57,4.4332013]
[1759401313732,0.1,225.6,225.58,0.7]
[1759401314152,0.1,225.6,225.59,0.7]
[1759401315143,0.1,225.6,225.55,25.93343064]
[1759401315454,0.1,225.6,225.58,0.7]
[1759401316158,0.1,225.6,225.59,0.7]
[1759401316364,0.1,225.6,225.57,4.43317875]
[1759401316544,0.1,225.6,225.57,5.13317875]
[1759401316746,0.1,225.6,225.58,0.7]
[1759401317768,0.1,225.6,225.59,0.7]
[1759401318956,0.1,225.6,225.59,5.1328206]
[1759401319577,0.1,225.6,225.59,0.7]
[1759401322159,0.1,225.6,225.57,0.7]
[1759401322357,0.1,225.6,225.58,0.67]
[1759401324259,0.1,225.6,225.58,0.7]
[1759401325089,0.1,225.6,225.59,0.7]
[1759401328489,0.1,225.6,225.57,4.43321363]
[1759401329067,0.1,225.6,225.59,20.8]
[1759401329275,0.1,225.6,225.58,31.74]
[1759401329569,0.1,225.6,225.56,5.13340793]
[1759401329778,0.1,225.6,225.57,21.5]
[1759401330014,0.1,225.6,225.58,21.5]
[1759401330162,0.1,225.6,225.58,0.7]
[1759401332078,0.1,225.6,225.59,21.5]
[1759401332675,0.1,225.6,225.59,0.7]
[1759401333272,0.1,225.6,225.56,21.5]
[1759401333501,0.1,225.6,225.56,0.7]
[1759401334280,0.55,225.59,225.53,0.7]
[1759401335708,4.43301711,225.58,225.53,0.7]
[1759401336898,4.43301711,225.58,225.54,0.7]
[1759401337090,4.43301711,225.58,225.52,25.23414144]
[1759401337091,4.43301711,225.58,225.55,0.7]
[1759401337288,4.43282272,225.59,225.56,0.7]
[1759401337499,0.1,225.6,225.57,0.7]
[1759401340716,4.53266936,225.6,225.57,21.5]
[1759401342321,4.53266936,225.6,225.57,0.7]
[1759401342993,4.53266936,225.6,225.55,25.23359239]
[1759401343303,0.1,225.6,225.56,0.7]
[1759401344185,0.1,225.6,225.56,21.5]
[1759401344385,0.1,225.6,225.57,0.7]
[1759401344811,0.1,225.6,225.58,0.7]
[1759401347432,0.1,225.6,225.56,25.23338976]
[1759401347602,0.1,225.6,225.57,0.7]
[1759401348008,0.1,225.6,225.58,0.7]
[1759401348920,0.55,225.59,225.54,0.7]
[1759401349100,0.55,225.58,225.52,21.5]
[1759401349290,5.08272347,225.6,225.53,0.7]
[1759401350001,4.53272347,225.6,225.53,21.5]
[1759401350206,0.1,225.6,225.54,0.7]
[1759401350589,0.1,225.6,225.55,4.43360673]
[1759401350813,0.1,225.6,225.57,20.8]
[1759401351191,0.1,225.6,225.58,0.7]
[1759401351391,0.1,225.6,225.59,0.7]
[1759401352992,4.53084885,225.7,225.59,36.2328206]
[1759401353189,5.18084885,225.7,225.63,20.8]
[1759401353615,5.18084885,225.7,225.63,21.5]
[1759401353817,5.18084885,225.7,225.63,0.7]
[1759401354321,5.18084885,225.7,225.63,21.5]
[1759401355819,5.18084885,225.7,225.64,0.66]
[1759401357129,4.53084885,225.7,225.64,0.66]
[1759401358106,0.1,225.7,225.64,5.09181387]
[1759401358301,0.1,225.7,225.65,0.66]
[1759401358522,0.1,225.7,225.64,4.43181387]
[1759401358523,0.1,225.7,225.66,0.66]
[1759401358808,5.18079995,225.7,225.63,20.8]
[1759401359003,5.18079995,225.7,225.64,0.66]
[1759401359219,4.53079995,225.7,225.64,0.66]
[1759401360611,0.1,225.7,225.64,5.0916637]
[1759401360816,4.53073936,225.7,225.65,0.66]
[1759401361018,4.53073936,225.7,225.66,0.66]
[1759401361511,4.53073936,225.7,225.63,20.8]
[1759401361512,5.18073936,225.7,225.63,20.8]
[1759401361834,5.18073936,225.7,225.64,21.46]
[1759401362206,0.1,225.7,225.65,0.66]
[1759401364230,0.1,225.7,225.66,4.43144553]
[1759401364522,0.69,225.85,225.73,20.8]
[1759401364723,0.69,225.84,225.74,0.66]
[1759401365742,4.52827835,225.83,225.75,4.42967884]
[1759401366033,4.52827835,225.83,225.76,0.66]
[1759401368030,4.52827835,225.83,225.73,51.92]
[1759401368031,16.28855244,225.83,225.73,21.46]
[1759401368238,2.31223633,225.81,225.73,20.8]
[1759401368414,3.00223633,225.8,225.73,20.8]
[1759401368740,0.69,225.79,225.73,20.8]
[1759401369933,15.50181592,225.78,225.73,20.8]
[1759401370118,16.19181592,225.78,225.73,20.8]
[1759401370308,16.19181592,225.78,225.73,21.46]
[1759401370714,15.50181592,225.78,225.74,0.66]
[1759401370930,15.50181592,225.78,225.75,0.66]
[1759401371144,15.50181592,225.78,225.73,21.46]
[1759401371348,4.42909026,225.78,225.74,0.66]
[1759401371522,4.42909026,225.78,225.75,0.66]
[1759401371925,4.42887009,225.8,225.75,0.66]
[1759401372135,15.50003381,225.81,225.73,25.22997493]
[1759401372336,15.50003381,225.81,225.76,0.66]
[1759401372541,15.50003381,225.81,225.77,0.66]
[1759401373034,4.42850183,225.81,225.77,0.66]
[1759401373428,0.1,225.83,225.78,0.66]
[1759401373429,4.52827646,225.83,225.78,0.66]
[1759401373622,4.52827646,225.83,225.76,20.8]
[1759401373623,4.52827646,225.83,225.79,0.66]
[1759401374238,4.52827646,225.83,225.78,20.8]
[1759401374428,4.52827646,225.83,225.79,0.66]
[1759401375243,4.52827646,225.83,225.8,0.66]
[1759401375414,0.1,225.83,225.81,0.66]
[1759401375619,0.1,225.83,225.78,0.66]
[1759401375620,5.21811166,225.83,225.78,0.66]
[1759401376326,4.52811166,225.83,225.78,0.66]
[1759401377730,4.52811166,225.83,225.76,25.22946941]
[1759401377933,4.52811166,225.83,225.77,0.66]
[1759401379442,4.52811166,225.83,225.77,5.08923872]